bitfinex/quotes_BTCUSD_20240831
["timestamp","ask_amount","ask_price","bid_price","bid_amount"]
[1725129706324,0.000818,59217.0,59216.0,1.020865]
[1725129707174,0.000818,59217.0,59216.0,1.029865]
[1725129707611,0.000818,59217.0,59216.0,1.020865]
[1725129708036,0.000818,59217.0,59216.0,1.030865]
[1725129725218,0.000818,59217.0,59216.0,1.0317648]
[1725129736420,0.000818,59217.0,59216.0,1.3695108]
[1725129741949,0.337673,59229.0,59221.0,0.337714]
[1725129742160,0.168841,59228.0,59223.0,0.168852]
[1725129742329,0.20336155,59228.0,59223.0,0.168852]
[1725129742538,0.03452055,59228.0,59224.0,0.168848]
[1725129743534,0.20435955,59228.0,59224.0,0.168848]
[1725129744164,0.1,59227.0,59224.0,0.168848]
[1725129744375,0.0080271,59226.0,59224.0,0.168848]
[1725129746283,0.0080271,59226.0,59224.0,0.169848]
[1725129748125,0.0080271,59226.0,59225.0,0.168847]
[1725129748577,0.101,59228.0,59225.0,0.168847]
[1725129748799,0.00802832,59227.0,59225.0,0.168847]
[1725129749259,0.00802832,59227.0,59223.0,0.168852]
[1725129749260,0.168845,59226.0,59223.0,0.168852]
[1725129749475,0.169663,59226.0,59225.0,0.001]
[1725129749692,0.337707,59223.0,59216.0,0.0008998]
[1725129749906,0.09043038,59225.0,59216.0,0.0008998]
[1725129749907,0.0131,59220.0,59216.0,0.0008998]
[1725129750348,0.00803162,59219.0,59216.0,0.1697718]
[1725129750559,0.45633713,59218.0,59216.0,0.0008998]
[1725129750777,0.25127,59217.0,59216.0,0.0008998]
[1725129751239,0.25930615,59217.0,59216.0,0.0028998]
[1725129751479,0.93478615,59217.0,59216.0,0.0028998]
[1725129751750,0.93478615,59217.0,59216.0,0.0008998]
[1725129751751,0.59704615,59217.0,59216.0,0.0008998]
[1725129752017,0.59704615,59217.0,59216.0,0.0038998]
[1725129752507,0.93478615,59217.0,59216.0,0.0038998]
[1725129752741,0.94788615,59217.0,59216.0,0.0038998]
[1725129752973,1.28562615,59217.0,59216.0,0.0068998]
[1725129753239,1.28562615,59217.0,59216.0,0.0038998]
[1725129753468,1.28562615,59217.0,59216.0,0.0008998]
[1725129753693,1.28562615,59217.0,59216.0,0.0078998]
[1725129753917,1.31212155,59217.0,59216.0,0.0078998]
[1725129754150,1.28562615,59217.0,59216.0,0.0078998]
[1725129756379,1.30681983,59217.0,59216.0,0.0078998]
[1725129756596,1.40681983,59217.0,59216.0,0.0078998]
[1725129756828,1.74455983,59217.0,59216.0,0.0078998]
[1725129757038,2.41212283,59217.0,59216.0,0.0078998]
[1725129757235,2.4386206,59217.0,59216.0,0.0078998]
[1725129757449,2.60717224,59217.0,59216.0,0.0048998]
[1725129757691,2.60717224,59217.0,59216.0,0.0028998]
[1725129758292,2.60717224,59217.0,59216.0,0.0008998]
[1725129758502,2.61117224,59217.0,59216.0,0.0018998]
[1725129759121,2.61117224,59217.0,59216.0,0.0048998]
[1725129759327,2.65912087,59217.0,59216.0,0.0018998]
[1725129759554,2.65912087,59217.0,59216.0,0.0028998]
[1725129759768,2.6346231,59217.0,59216.0,0.0028998]
[1725129759985,2.6326231,59217.0,59216.0,0.0008998]
[1725129760188,2.6476231,59217.0,59216.0,0.0028998]
[1725129760396,2.6576231,59217.0,59216.0,0.0028998]
[1725129760855,2.6446231,59217.0,59216.0,0.0018998]
[1725129761067,2.6576231,59217.0,59216.0,0.0028998]
[1725129762353,2.43912283,59217.0,59216.0,0.0028998]
[1725129762970,2.46562566,59217.0,59216.0,0.0028998]
[1725129764699,2.51357429,59217.0,59216.0,0.0028998]
[1725129765112,2.51557429,59217.0,59216.0,0.0028998]
[1725129765339,2.48907146,59217.0,59216.0,0.0028998]
[1725129765550,2.51557452,59217.0,59216.0,0.0028998]
[1725129766011,2.48907146,59217.0,59216.0,0.0028998]
[1725129766733,2.6576231,59217.0,59216.0,0.0028998]
[1725129767543,2.6556231,59217.0,59216.0,0.0028998]
[1725129767742,2.60767447,59217.0,59216.0,0.0028998]
[1725129769052,2.63417708,59217.0,59216.0,0.0028998]
[1725129769696,2.64095608,59217.0,59216.0,0.0028998]
[1725129769902,2.68743802,59217.0,59216.0,0.0028998]
[1725129771411,2.68943802,59217.0,59216.0,0.0028998]
[1725129772543,2.64095608,59217.0,59216.0,0.0028998]
[1725129772739,2.64295608,59217.0,59216.0,0.0028998]
[1725129772966,2.61445347,59217.0,59216.0,0.0028998]
[1725129773428,2.61645347,59217.0,59216.0,0.0028998]
[1725129775005,2.61445347,59217.0,59216.0,0.0028998]
[1725129776197,2.64095606,59217.0,59216.0,0.0028998]
[1725129776376,3.23275206,59217.0,59216.0,0.0028998]
[1725129777214,3.19371506,59217.0,59216.0,0.0028998]
[1725129778049,2.97635142,59217.0,59216.0,0.0028998]
[1725129778671,2.97835142,59217.0,59216.0,0.0028998]
[1725129779297,2.97835142,59217.0,59209.0,8e-07]
[1725129779298,1.87279,59210.0,59209.0,8e-07]
[1725129779506,1.87279,59210.0,59188.0,0.0008998]
[1725129779507,0.506815,59193.0,59188.0,0.0008998]
[1725129779719,1.63904613,59193.0,59188.0,0.0008998]
[1725129779928,1.74907002,59193.0,59188.0,0.0008998]
[1725129780558,1.82355196,59193.0,59188.0,0.0008998]
[1725129780991,1.82555196,59193.0,59188.0,0.0008998]
[1725129781199,1.9961036,59193.0,59188.0,0.0008998]
[1725129781811,1.94462166,59193.0,59188.0,0.0008998]
[1725129782221,1.95262166,59193.0,59188.0,0.0008998]
[1725129783038,2.29909866,59193.0,59188.0,0.0008998]
[1725129783926,2.32104077,59193.0,59188.0,0.0008998]
[1725129784149,2.31904077,59193.0,59188.0,0.0008998]
[1725129784822,2.31604077,59193.0,59188.0,0.0008998]
[1725129785294,2.32504077,59193.0,59188.0,0.0008998]
[1725129786211,2.33504077,59193.0,59192.0,0.0018998]
[1725129787751,2.33304077,59193.0,59192.0,0.0018998]
[1725129788834,2.33504077,59193.0,59192.0,0.0018998]
[1725129789293,2.36155304,59193.0,59192.0,0.0018998]
[1725129790626,2.35295304,59193.0,59192.0,0.0018998]
[1725129790832,2.23235291,59193.0,59192.0,0.0018998]
[1725129791012,2.1824014,59193.0,59192.0,0.0721998]
[1725129792928,2.15588913,59193.0,59192.0,0.0721998]
[1725129797029,1.81801213,59193.0,59192.0,0.0721998]
[1725129798105,1.98656377,59193.0,59192.0,0.0721998]
[1725129798311,1.98656377,59193.0,59192.0,0.0018998]
[1725129799461,2.01307481,59193.0,59192.0,0.0018998]
[1725129801315,1.84452317,59193.0,59192.0,0.0018998]
[1725129803093,1.81801213,59193.0,59192.0,0.0018998]
[1725129803767,2.15588913,59193.0,59192.0,0.0018998]
[1725129804055,2.21107107,59193.0,59192.0,0.0018998]
[1725129804221,2.28997107,59193.0,59192.0,0.0018998]
[1725129804403,0.63245013,59189.0,59188.0,0.0008998]
[1725129804627,2.12072313,59189.0,59188.0,0.0008998]
[1725129804785,2.37650361,59189.0,59188.0,0.0008998]
[1725129805026,2.36633361,59189.0,59188.0,0.0008998]
[1725129805204,3.8574079,59189.0,59188.0,0.0008998]
[1725129805407,3.7687769,59189.0,59188.0,0.0008998]
[1725129805584,3.7471969,59189.0,59188.0,0.0008998]
[1725129805786,3.7611969,59189.0,59188.0,0.0008998]
[1725129806557,3.5404519,59189.0,59188.0,0.0008998]
[1725129807073,3.4611519,59189.0,59188.0,0.0008998]
[1725129807272,3.4509819,59189.0,59188.0,0.0008998]
[1725129808319,3.1006349,59189.0,59188.0,0.0008998]
[1725129808522,1.68707648,59189.0,59188.0,0.1595998]
[1725129808725,1.80567661,59189.0,59188.0,0.1595998]
[1725129809917,1.80567661,59189.0,59188.0,0.0704998]
[1725129810161,1.97422825,59189.0,59188.0,0.0704998]
[1725129812487,2.0007407,59189.0,59188.0,0.0704998]
[1725129815509,1.97422825,59189.0,59188.0,0.0704998]
[1725129818257,1.80067661,59189.0,59188.0,0.0704998]
[1725129818661,1.82718889,59189.0,59188.0,0.0704998]
[1725129820953,1.34768876,59189.0,59188.0,0.0704998]
[1725129821145,1.34768876,59189.0,59188.0,0.2554998]
[1725129821911,1.00978876,59189.0,59188.0,0.2554998]
[1725129822332,0.96927648,59189.0,59188.0,0.2554998]
[1725129822875,0.95527648,59189.0,59188.0,0.2554998]
[1725129823082,0.96627648,59189.0,59188.0,0.2554998]
[1725129823292,0.96527648,59189.0,59188.0,0.2554998]
[1725129823667,0.97527648,59189.0,59188.0,0.2554998]
[1725129823879,0.95527648,59189.0,59188.0,0.2554998]
[1725129825258,0.95827648,59189.0,59188.0,0.2554998]
[1725129825490,0.98878641,59189.0,59188.0,0.2554998]
[1725129825726,0.98478641,59189.0,59188.0,0.2554998]
[1725129825929,0.98678641,59189.0,59188.0,0.2554998]
[1725129827113,0.98378641,59189.0,59188.0,0.2554998]
[1725129827351,0.98478641,59189.0,59188.0,0.2554998]
[1725129828445,1.32268641,59189.0,59188.0,0.2554998]
[1725129830279,1.32168641,59189.0,59188.0,0.2554998]
[1725129830484,1.31968641,59189.0,59188.0,0.2554998]
[1725129830686,1.32068641,59189.0,59188.0,0.2554998]
[1725129831102,1.31792785,59189.0,59188.0,0.2554998]
[1725129831887,1.31992785,59189.0,59188.0,0.2554998]
[1725129833057,1.29341792,59189.0,59188.0,0.2554998]
[1725129833399,1.29241792,59189.0,59188.0,0.2554998]
[1725129834243,1.29041792,59189.0,59188.0,0.2554998]
[1725129835667,1.29141792,59189.0,59188.0,0.2554998]
[1725129835900,1.29041792,59189.0,59188.0,0.2554998]
[1725129836121,1.29241792,59189.0,59188.0,0.2554998]
[1725129836551,1.29341792,59189.0,59188.0,0.2554998]
[1725129836996,1.29241792,59189.0,59188.0,0.2554998]
[1725129837347,1.29341792,59189.0,59188.0,0.2554998]
[1725129838108,1.29441792,59189.0,59188.0,0.2554998]
[1725129838519,1.29141792,59189.0,59188.0,0.2554998]
[1725129838949,1.29341792,59189.0,59188.0,0.2554998]
[1725129839393,1.00924267,59189.0,59188.0,0.2554998]
[1725129839604,1.03475272,59189.0,59188.0,0.2554998]
[1725129839833,1.03675272,59189.0,59188.0,0.2554998]
[1725129840199,1.03475272,59189.0,59188.0,0.2554998]
[1725129840402,1.20370272,59189.0,59188.0,0.2554998]
[1725129840599,1.20570272,59189.0,59188.0,0.2554998]
[1725129841591,1.30570272,59189.0,59188.0,0.2554998]
[1725129842426,1.30652072,59189.0,59188.0,0.2554998]
[1725129842984,1.28001067,59189.0,59188.0,0.2554998]
[1725129857231,1.3065205,59189.0,59188.0,0.1704998]
[1725129857661,1.2995205,59189.0,59188.0,0.1704998]
[1725129857883,1.27501067,59189.0,59188.0,0.1704998]
[1725129858111,1.27801067,59189.0,59188.0,0.1704998]
[1725129858336,1.27301067,59189.0,59188.0,0.1704998]
[1725129858541,1.27601067,59189.0,59188.0,0.1704998]
[1725129858754,1.27801067,59189.0,59188.0,0.1704998]
[1725129859186,1.27601067,59189.0,59188.0,0.1704998]
[1725129859395,1.27301067,59189.0,59188.0,0.1704998]
[1725129859839,1.27801067,59189.0,59188.0,0.1704998]
[1725129860916,1.27301067,59189.0,59188.0,0.1704998]
[1725129861129,1.30652062,59189.0,59188.0,0.1704998]
[1725129861330,1.31252062,59189.0,59188.0,0.1704998]
[1725129861558,1.30552062,59189.0,59188.0,0.1704998]
[1725129861770,1.31052062,59189.0,59188.0,0.1704998]
[1725129862624,1.29952062,59189.0,59188.0,0.1704998]
[1725129862839,1.31352062,59189.0,59188.0,0.1704998]
[1725129863043,1.65142062,59189.0,59188.0,0.1704998]
[1725129863506,1.84297226,59189.0,59188.0,0.1008998]
[1725129863744,1.35474587,59189.0,59188.0,0.1008998]
[1725129864182,1.65913592,59189.0,59188.0,0.1008998]
[1725129864388,1.66613592,59189.0,59188.0,0.1008998]
[1725129864593,1.67313592,59189.0,59188.0,0.1008998]
[1725129864801,1.65213592,59189.0,59188.0,0.1008998]
[1725129865207,1.66613592,59189.0,59188.0,0.1008998]
[1725129866337,1.66993592,59189.0,59188.0,0.1008998]
[1725129867136,1.83848756,59189.0,59188.0,0.1008998]
[1725129870860,1.66613592,59189.0,59188.0,0.1008998]
[1725129873228,1.82414592,59189.0,59188.0,0.1008998]
[1725129873748,1.85065722,59189.0,59188.0,0.1008998]
[1725129877548,1.69264722,59189.0,59188.0,0.1661998]
[1725129877749,1.81124735,59189.0,59188.0,0.1661998]
[1725129878993,1.78473605,59189.0,59188.0,0.1661998]
[1725129880194,1.93143259,59189.0,59188.0,0.1661998]
[1725129881464,1.93143259,59189.0,59188.0,0.0661998]
[1725129881669,1.78473605,59189.0,59188.0,0.0661998]
[1725129889664,1.78473605,59189.0,59188.0,0.0008998]
[1725129890602,2.5528271,59189.0,59188.0,0.0008998]
[1725129890831,2.42595499,59189.0,59188.0,0.0008998]
[1725129891090,2.42795499,59189.0,59188.0,0.0008998]
[1725129891314,2.59650663,59189.0,59188.0,0.0008998]
[1725129891545,2.54102469,59189.0,59188.0,0.0008998]
[1725129891791,2.31994984,59189.0,59188.0,0.0008998]
[1725129892029,2.43854997,59189.0,59188.0,0.0008998]
[1725129892279,2.31367305,59189.0,59188.0,0.0008998]
[1725129892512,2.30667305,59189.0,59188.0,0.0008998]
[1725129892829,2.34718601,59189.0,59188.0,0.0008998]
[1725129893643,2.51536461,59189.0,59188.0,0.0008998]
[1725129895328,2.34718601,59189.0,59188.0,0.0008998]
[1725129895745,2.32067305,59189.0,59188.0,0.0008998]
[1725129898208,2.39567305,59189.0,59188.0,0.0008998]
[1725129898898,2.42218725,59189.0,59188.0,0.0008998]
[1725129900549,2.34718725,59189.0,59188.0,0.0008998]
[1725129900983,2.41318725,59189.0,59188.0,0.0008998]
[1725129901397,2.58173889,59189.0,59188.0,0.0008998]
[1725129901602,2.41318725,59189.0,59188.0,0.0008998]
[1725129902294,2.54004104,59189.0,59188.0,0.0008998]
[1725129903200,2.51352684,59189.0,59188.0,0.0008998]
[1725129903923,2.33148984,59189.0,59188.0,0.0008998]
[1725129904128,3.62535948,59189.0,59188.0,0.0008998]
[1725129905608,1.858609,59184.0,59183.0,0.0008998]
[1725129905841,4.90175513,59184.0,59183.0,0.0008998]
[1725129906063,5.18133137,59184.0,59183.0,0.0008998]
[1725129906287,5.44988301,59184.0,59183.0,0.0008998]
[1725129906503,5.47639829,59184.0,59183.0,0.0008998]
[1725129906744,5.27061529,59184.0,59183.0,0.0008998]
[1725129906954,5.28061529,59184.0,59183.0,0.0008998]
[1725129908076,5.61854429,59184.0,59183.0,0.0008998]
[1725129908539,5.57206235,59184.0,59183.0,0.0008998]
[1725129908750,5.58206235,59184.0,59183.0,0.0008998]
[1725129910904,5.70892469,59184.0,59183.0,0.0008998]
[1725129911138,5.58206235,59184.0,59183.0,0.0008998]
[1725129912453,3.34751558,59184.0,59183.0,0.0659998]
[1725129912667,2.81372343,59184.0,59183.0,0.1474998]
[1725129912896,2.81172343,59184.0,59183.0,0.1474998]
[1725129913103,2.81372343,59184.0,59183.0,0.1474998]
[1725129913750,2.98227507,59184.0,59183.0,0.1474998]
[1725129914390,3.00382108,59184.0,59183.0,0.1474998]
[1725129916461,3.03033641,59184.0,59183.0,0.1474998]
[1725129916900,3.00382108,59184.0,59183.0,0.1474998]
[1725129917314,3.53683508,59184.0,59183.0,0.1474998]
[1725129918160,3.31421008,59184.0,59183.0,0.1474998]
[1725129923268,1.71992657,59184.0,59183.0,0.1474998]
[1725129923483,1.8385267,59184.0,59183.0,0.1474998]
[1725129927253,1.8435267,59184.0,59183.0,0.1474998]
[1725129927908,1.81701144,59184.0,59183.0,0.1474998]
[1725129928544,1.81201144,59184.0,59183.0,0.1474998]
[1725129928994,1.81701144,59184.0,59183.0,0.1474998]
[1725129932265,1.69341131,59184.0,59183.0,0.1474998]
[1725129932483,2.56005208,59184.0,59183.0,0.0008998]
[1725129932731,2.60653402,59184.0,59183.0,0.0008998]
[1725129933379,2.60853402,59184.0,59183.0,0.0008998]
[1725129933607,1.97939613,59178.0,59177.0,0.0009009]
[1725129933817,3.27324813,59178.0,59177.0,0.0009009]
[1725129934040,3.28258169,59178.0,59177.0,0.0009009]
[1725129934245,3.30909819,59178.0,59177.0,0.0009009]
[1725129934900,3.31109819,59178.0,59177.0,0.0009009]
[1725129935101,3.44530505,59178.0,59177.0,0.0009009]
[1725129936391,3.44830505,59178.0,59177.0,0.0009009]
[1725129938566,3.46926941,59178.0,59177.0,0.0009009]
[1725129940748,3.44227941,59178.0,59177.0,0.0009009]
[1725129940961,3.36704741,59178.0,59177.0,0.0009009]
[1725129942696,3.70501041,59178.0,59177.0,0.0009009]
[1725129942909,3.75149235,59178.0,59177.0,0.0009009]
[1725129943118,3.70501041,59178.0,59177.0,0.0009009]
[1725129944009,3.70501041,59178.0,59177.0,0.1575009]
[1725129944010,3.42368692,59178.0,59177.0,0.1575009]
[1725129944268,2.74983905,59178.0,59177.0,0.1575009]
[1725129946930,2.01709392,59178.0,59177.0,0.1575009]
[1725129947133,1.79773105,59178.0,59177.0,0.1575009]
[1725129947336,1.82424835,59178.0,59177.0,0.1575009]
[1725129947722,1.79773105,59178.0,59177.0,0.1575009]
[1725129949532,1.77473105,59178.0,59177.0,0.1575009]
[1725129951818,1.31816792,59178.0,59177.0,0.1575009]
[1725129952026,1.21816792,59178.0,59177.0,0.1575009]
[1725129952271,1.24468353,59178.0,59177.0,0.1575009]
[1725129952501,1.21816792,59178.0,59177.0,0.1575009]
[1725129953306,1.31816792,59178.0,59177.0,0.1575009]
[1725129954484,1.29720356,59178.0,59177.0,0.1575009]
[1725129955001,1.29420356,59178.0,59177.0,0.1575009]
[1725129955209,1.32071755,59178.0,59177.0,0.1575009]
[1725129956106,1.31871755,59178.0,59177.0,0.1575009]
[1725129956519,1.32071755,59178.0,59177.0,0.1575009]
[1725129956961,1.31871755,59178.0,59177.0,0.1575009]
[1725129960839,0.00933356,59178.0,59177.0,0.28448061]
[1725129961075,0.000819,59183.0,59178.0,0.16898]
[1725129961308,0.168971,59182.0,59181.0,0.1618]
[1725129962502,0.269971,59182.0,59181.0,0.1618]
[1725129962956,0.268971,59182.0,59181.0,0.1618]
[1725129963186,0.269971,59182.0,59181.0,0.1618]
[1725129963688,0.270971,59182.0,59181.0,0.1618]
[1725129964318,0.29748171,59182.0,59181.0,0.1618]
[1725129965638,0.63542171,59182.0,59181.0,0.1618]
[1725129966572,0.3210586,59182.0,59181.0,0.1618]
[1725129966815,0.34756946,59182.0,59181.0,0.1618]
[1725129967286,0.51654046,59182.0,59181.0,0.1618]
[1725129967506,0.51654046,59182.0,59181.0,0.1568]
[1725129967507,0.85448046,59182.0,59181.0,0.1568]
[1725129967753,0.85448046,59182.0,59181.0,0.1618]
[1725129967971,0.8279696,59182.0,59181.0,0.1618]
[1725129968666,0.9279696,59182.0,59181.0,0.1618]
[1725129968909,0.9299696,59182.0,59181.0,0.1638]
[1725129971298,0.95648098,59182.0,59181.0,0.1638]
[1725129971497,0.9299696,59182.0,59181.0,0.1638]
[1725129971968,0.9307876,59182.0,59181.0,0.1638]
[1725129974700,0.95729887,59182.0,59181.0,0.1638]
[1725129981032,0.9307876,59182.0,59181.0,0.1638]
[1725129984277,0.95729904,59182.0,59181.0,0.1638]
[1725129984753,0.95529904,59182.0,59181.0,0.1618]
[1725129985279,0.95529904,59182.0,59181.0,0.1638]
[1725129985537,0.95529904,59182.0,59181.0,0.1618]
[1725129985783,0.95529904,59182.0,59181.0,0.1638]
[1725129986967,0.9287876,59182.0,59181.0,0.1638]
[1725129987701,1.38532773,59182.0,59181.0,0.002]
[1725129989135,1.72326773,59182.0,59181.0,0.002]
[1725129989372,1.78916773,59182.0,59181.0,0.002]
[1725129989605,1.72326773,59182.0,59181.0,0.002]
[1725129990382,1.74978115,59182.0,59181.0,0.002]
[1725129990867,1.74978115,59182.0,59181.0,0.0679]
[1725129991387,1.29324102,59182.0,59181.0,0.0679]
[1725129992830,1.29324102,59182.0,59181.0,0.1537]
[1725129994724,2.95420489,59182.0,59181.0,0.002]
[1725129994970,2.92769147,59182.0,59181.0,0.002]
[1725129995506,1.860763,59179.0,59178.0,0.0008998]
[1725129995753,3.13791913,59179.0,59178.0,0.0008998]
[1725129996281,2.95791913,59179.0,59178.0,0.0008998]
[1725129996498,2.64791913,59179.0,59178.0,0.0008998]
[1725129997008,2.82047077,59179.0,59178.0,0.0008998]
[1725129997500,2.94328051,59179.0,59178.0,0.0008998]
[1725129997741,2.94628051,59179.0,59178.0,0.0008998]
[1725129998249,2.97279829,59179.0,59178.0,0.0008998]
[1725129998499,2.97279829,59179.0,59177.0,0.0009009]
[1725129998500,1.870796,59178.0,59177.0,0.0009009]
[1725129998745,3.84971603,59178.0,59177.0,0.0009009]
[1725129998984,3.63094577,59178.0,59177.0,0.0009009]
[1725129999719,3.50657777,59178.0,59177.0,0.0009009]
[1725129999974,3.51557777,59178.0,59177.0,0.0009009]
[1725130000492,3.85354077,59178.0,59177.0,0.0009009]
[1725130001223,3.86154077,59178.0,59177.0,0.0009009]
[1725130002621,3.72932477,59178.0,59177.0,0.0009009]
[1725130002857,3.56077313,59178.0,59177.0,0.0009009]
[1725130004286,3.58729079,59178.0,59177.0,0.0009009]
[1725130004786,3.56077313,59178.0,59177.0,0.0009009]
[1725130006201,3.56977113,59178.0,59177.0,0.0009009]
[1725130006422,3.71805596,59178.0,59177.0,0.0009009]
[1725130007837,3.51380696,59178.0,59177.0,0.0009009]
[1725130008153,3.48124096,59178.0,59177.0,0.0009009]
[1725130009502,1.858923,59174.0,59164.0,0.076298]
[1725130009708,4.05142177,59174.0,59164.0,0.076298]
[1725130009923,3.24287013,59174.0,59164.0,0.076298]
[1725130010350,3.30807013,59174.0,59164.0,0.008998]
[1725130010806,3.43036088,59174.0,59164.0,0.008998]
[1725130011642,3.44109574,59174.0,59164.0,0.008998]
[1725130012068,3.44509574,59174.0,59164.0,0.008998]
[1725130012277,3.61364738,59174.0,59164.0,0.008998]
[1725130013722,3.95163338,59174.0,59164.0,0.008998]
[1725130014556,3.9781551,59174.0,59164.0,0.008998]
[1725130015186,2.19698,59172.0,59164.0,0.008998]
[1725130015401,5.49106342,59172.0,59164.0,0.008998]
[1725130015672,5.32757321,59172.0,59164.0,0.008998]
[1725130017137,5.34157321,59172.0,59164.0,0.008998]
[1725130017781,2.54337421,59172.0,59164.0,0.008998]
[1725130018205,7.71801621,59172.0,59164.0,0.008998]
[1725130018417,7.90136621,59172.0,59164.0,0.008998]
[1725130018631,7.92788842,59172.0,59164.0,0.008998]
[1725130019569,7.92788842,59172.0,59171.0,0.0012998]
[1725130019803,7.75816442,59172.0,59171.0,0.0012998]
[1725130020533,3.42520915,59172.0,59171.0,0.0012998]
[1725130021481,3.39868694,59172.0,59171.0,0.0012998]
[1725130023388,3.44587769,59172.0,59171.0,0.0012998]
[1725130024688,3.47240054,59172.0,59171.0,0.0012998]
[1725130025721,3.42520979,59172.0,59171.0,0.0012998]
[1725130026006,3.59376143,59172.0,59171.0,0.0012998]
[1725130027436,3.56723858,59172.0,59171.0,0.0012998]
[1725130027781,3.39868694,59172.0,59171.0,0.0012998]
[1725130030858,3.42520986,59172.0,59171.0,0.0012998]
[1725130031330,3.42520986,59172.0,59171.0,0.0708998]
[1725130032249,3.17994386,59172.0,59171.0,0.0708998]
[1725130033655,3.15342094,59172.0,59171.0,0.0708998]
[1725130034128,0.0692,59171.0,59164.0,0.008998]
[1725130034367,0.507055,59165.0,59164.0,0.008998]
[1725130034575,0.530055,59165.0,59164.0,0.008998]
[1725130034823,0.63814375,59165.0,59164.0,0.008998]
[1725130035057,1.99029175,59165.0,59164.0,0.008998]
[1725130036203,2.00429175,59165.0,59164.0,0.008998]
[1725130036872,2.03081515,59165.0,59164.0,0.008998]
[1725130037083,2.04381515,59165.0,59164.0,0.008998]
[1725130037341,2.21236679,59165.0,59164.0,0.008998]
[1725130037550,2.18536679,59165.0,59164.0,0.008998]
[1725130037795,2.19936679,59165.0,59164.0,0.008998]
[1725130038077,2.21236679,59165.0,59164.0,0.008998]
[1725130040275,2.04381515,59165.0,59164.0,0.008998]
[1725130040495,2.18394771,59165.0,59164.0,0.082098]
[1725130042596,2.31080785,59165.0,59164.0,0.082098]
[1725130043020,2.18394771,59165.0,59164.0,0.082098]
[1725130043867,2.86877617,59165.0,59164.0,0.082098]
[1725130044757,2.83548617,59165.0,59164.0,0.082098]
[1725130045023,2.83548617,59165.0,59164.0,0.008998]
[1725130045484,2.73228917,59165.0,59164.0,0.008998]
[1725130047806,2.06534758,59165.0,59164.0,0.008998]
[1725130048044,2.32341071,59165.0,59164.0,0.008998]
[1725130048273,2.29688731,59165.0,59164.0,0.008998]
[1725130048531,2.29788731,59165.0,59164.0,0.008998]
[1725130050962,2.12886931,59165.0,59164.0,0.008998]
[1725130051380,2.17928718,59165.0,59164.0,0.008998]
[1725130051622,1.70431107,59165.0,59164.0,0.165598]
[1725130051861,1.67778718,59165.0,59164.0,0.165598]
[1725130054278,1.66257152,59165.0,59164.0,0.165598]
[1725130054503,1.68557152,59165.0,59164.0,0.165598]
[1725130055137,1.71209472,59165.0,59164.0,0.165598]
[1725130055347,2.63016972,59165.0,59164.0,0.082098]
[1725130056208,2.96820672,59165.0,59164.0,0.082098]
[1725130056880,2.90366572,59165.0,59164.0,0.082098]
[1725130057581,2.79754872,59165.0,59164.0,0.082098]
[1725130057797,2.96610036,59165.0,59164.0,0.082098]
[1725130060726,2.96610036,59165.0,59164.0,0.008998]
[1725130060932,3.09301061,59165.0,59164.0,0.008998]
[1725130062235,2.92445897,59165.0,59164.0,0.008998]
[1725130064202,2.79754872,59165.0,59164.0,0.008998]
[1725130066710,3.30454872,59165.0,59164.0,0.008998]
[1725130067323,2.55713172,59165.0,59164.0,0.008998]
[1725130067465,3.74960972,59165.0,59164.0,0.008998]
[1725130068604,3.75042872,59165.0,59164.0,0.008998]
[1725130068823,3.58305572,59165.0,59164.0,0.008998]
[1725130069283,3.56192572,59165.0,59164.0,0.008998]
[1725130069762,3.65452346,59165.0,59164.0,0.008998]
[1725130070013,3.69420026,59165.0,59164.0,0.008998]
[1725130070237,4.18451006,59165.0,59164.0,0.008998]
[1725130070456,3.96603726,59165.0,59164.0,0.008998]
[1725130071125,4.00473118,59165.0,59164.0,0.008998]
[1725130071355,4.07109912,59165.0,59164.0,0.008998]
[1725130073199,4.09762384,59165.0,59164.0,0.008998]
[1725130077725,3.94537123,59165.0,59164.0,0.008998]
[1725130078169,4.09756755,59165.0,59164.0,0.008998]
[1725130078377,3.94537123,59165.0,59164.0,0.008998]
[1725130078795,3.99256198,59165.0,59164.0,0.008998]
[1725130079003,3.96603726,59165.0,59164.0,0.008998]
[1725130079224,0.169041,59157.0,59156.0,0.1594]
[1725130079441,1.60884,59157.0,59156.0,0.1594]
[1725130079697,2.020838,59157.0,59156.0,0.1594]
[1725130079930,2.697004,59157.0,59156.0,0.1594]
[1725130080367,2.377215,59157.0,59156.0,0.1594]
[1725130080591,2.381215,59157.0,59156.0,0.1594]
[1725130081011,2.386215,59157.0,59156.0,0.1594]
[1725130081942,2.386215,59157.0,59156.0,0.1603009]
[1725130082156,1.92063808,59157.0,59156.0,0.1603009]
[1725130082403,1.82034174,59157.0,59156.0,0.1603009]
[1725130082660,2.13299438,59157.0,59156.0,0.1603009]
[1725130083146,1.82034174,59157.0,59156.0,0.1603009]
[1725130083374,1.79734174,59157.0,59156.0,0.1603009]
[1725130083832,1.34065861,59157.0,59156.0,0.1603009]
[1725130084076,1.31413208,59157.0,59156.0,0.1603009]
[1725130085765,0.97604908,59157.0,59156.0,0.1623009]
[1725130087137,1.00257335,59157.0,59156.0,0.1623009]
[1725130088295,0.98073127,59157.0,59156.0,0.1623009]
[1725130088963,0.64264827,59157.0,59156.0,0.1673009]
[1725130089201,0.954207,59157.0,59156.0,0.1673009]
[1725130092191,0.278041,59157.0,59156.0,0.1673009]
[1725130092435,0.13552365,59157.0,59156.0,0.18068145]
[1725130092691,0.03552365,59157.0,59156.0,0.18068145]
[1725130092923,0.03552365,59157.0,59156.0,0.3463449]
[1725130093151,0.03552365,59157.0,59156.0,0.6844339]
[1725130094311,0.03052365,59157.0,59156.0,0.3463449]
[1725130094555,0.03452365,59157.0,59156.0,0.3463449]
[1725130094801,0.02652365,59157.0,59156.0,0.1773009]
[1725130095259,0.03152365,59157.0,59156.0,0.1773009]
[1725130095678,0.02852365,59157.0,59156.0,0.1773009]
[1725130095937,0.03052365,59157.0,59156.0,0.1773009]
[1725130096152,0.13052365,59157.0,59156.0,0.1773009]
[1725130099191,0.29956465,59157.0,59156.0,0.1773009]
[1725130099403,0.338079,59158.0,59157.0,0.017]
[1725130099608,0.845196,59158.0,59157.0,0.0867]
[1725130100303,0.845196,59158.0,59157.0,0.1782]
[1725130100304,0.507117,59158.0,59157.0,0.1782]
[1725130100980,0.87171808,59158.0,59157.0,0.1782]
[1725130101218,1.21579708,59158.0,59157.0,0.1682]
[1725130101685,1.32323601,59158.0,59157.0,0.1682]
[1725130102118,1.32323601,59158.0,59157.0,0.1672]
[1725130102360,1.32323601,59158.0,59157.0,0.1612]
[1725130102361,1.44183614,59158.0,59157.0,0.1612]
[1725130102576,1.44183614,59158.0,59157.0,0.1662]
[1725130102814,1.44183614,59158.0,59157.0,0.1682]
[1725130103725,1.46292265,59158.0,59157.0,0.1682]
[1725130104569,1.43640057,59158.0,59157.0,0.1662]